[Event "November 21 Late 2023"]
[Site "https://www.chess.com"]
[Date "2023.11.21"]
[Round "3"]
[White "Broca Jimenez, Fernando"]
[Black "Shohat, Yotam"]
[Result "1-0"]
[Board "154"]
[TimeControl "180+1"]
[WhiteFideId "5104742"]
[BlackFideId "2813955"]
[WhiteElo "2062"]
[BlackElo "2226"]
[WhiteTeam "MEX"]
[BlackTeam "ISR"]
[WhiteClock "0:00:17"]
[BlackClock "0:00:00"]

1. e4 {[%clk 0:03:00]}  c5 {[%clk 0:02:59]} 2. c3 {[%clk 0:03:00]}  Nf6 {[%clk 0:02:58]} 3. e5 {[%clk 0:03:00]}  Nd5 {[%clk 0:02:59]} 4. d4 {[%clk 0:03:00]}  cxd4 {[%clk 0:02:59]} 5. Nf3 {[%clk 0:03:01]}  Nc6 {[%clk 0:02:59]} 6. Bc4 {[%clk 0:03:01]}  Nb6 {[%clk 0:02:57]} 7. Bb3 {[%clk 0:03:02]}  d6 {[%clk 0:02:55]} 8. exd6 {[%clk 0:03:01]}  Qxd6 {[%clk 0:02:53]} 9. Nxd4 {[%clk 0:03:01]}  Nxd4 {[%clk 0:02:49]} 10. Qxd4 {[%clk 0:03:00]}  Qxd4 {[%clk 0:02:47]} 11. cxd4 {[%clk 0:03:01]}  e6 {[%clk 0:02:41]} 12. O-O {[%clk 0:02:58]}  Bd7 {[%clk 0:02:40]} 13. Nc3 {[%clk 0:02:45]}  Bc6 {[%clk 0:02:40]} 14. Rd1 {[%clk 0:02:43]}  Rd8 {[%clk 0:02:32]} 15. Be3 {[%clk 0:02:22]}  Be7 {[%clk 0:02:23]} 16. d5 {[%clk 0:02:09]}  Nxd5 {[%clk 0:01:51]} 17. Nxd5 {[%clk 0:02:06]}  Bxd5 {[%clk 0:01:51]} 18. Ba4+ {[%clk 0:01:55]}  Kf8 {[%clk 0:01:44]} 19. Rac1 {[%clk 0:01:39]}  f6 {[%clk 0:00:55]} 20. a3 {[%clk 0:01:25]}  Kf7 {[%clk 0:00:49]} 21. Rc7 {[%clk 0:01:13]}  Rc8 {[%clk 0:00:46]} 22. Rdc1 {[%clk 0:01:10]}  Bc6 {[%clk 0:00:18]} 23. Bxc6 {[%clk 0:00:42]}  Rxc7 {[%clk 0:00:17]} 24. Be8+ {[%clk 0:00:42]}  Rxe8 {[%clk 0:00:13]} 25. Rxc7 {[%clk 0:00:43]}  Rd8 {[%clk 0:00:08]} 26. g3 {[%clk 0:00:36]}  Ke8 {[%clk 0:00:07]} 27. Rxb7 {[%clk 0:00:35]}  a6 {[%clk 0:00:06]} 28. Kg2 {[%clk 0:00:31]}  Rd7 {[%clk 0:00:05]} 29. Rb8+ {[%clk 0:00:25]}  Kf7 {[%clk 0:00:04]} 30. Ra8 {[%clk 0:00:25]}  Rb7 {[%clk 0:00:02]} 31. b4 {[%clk 0:00:23]}  e5 {[%clk 0:00:01]} 32. Rxa6 {[%clk 0:00:23]}  f5 {[%clk 0:00:02]} 33. Ra7 {[%clk 0:00:18]}  Rb5 {[%clk 0:00:00]} 34. Bc5 {[%clk 0:00:17]} 1-0

[Event "November 21 Late 2023"]
[Site "https://www.chess.com"]
[Date "2023.11.21"]
[Round "3"]
[White "Souza, Gustavo Horokoski De"]
[Black "VitaliyChayka"]
[Result "0-1"]
[Board "155"]
[TimeControl "180+1"]
[WhiteFideId "2146584"]
[WhiteElo "1824"]
[BlackElo "2415"]
[WhiteTeam "BRA"]
[WhiteClock "0:00:02"]
[BlackClock "0:00:05"]

1. c4 {[%clk 0:02:04]}  e6 {[%clk 0:02:57]} 2. Nc3 {[%clk 0:02:03]}  d5 {[%clk 0:02:56]} 3. cxd5 {[%clk 0:02:02]}  exd5 {[%clk 0:02:55]} 4. d4 {[%clk 0:02:02]}  c6 {[%clk 0:02:51]} 5. Nf3 {[%clk 0:01:52]}  h6 {[%clk 0:02:50]} 6. Bf4 {[%clk 0:01:50]}  Nf6 {[%clk 0:02:48]} 7. e3 {[%clk 0:01:49]}  Bd6 {[%clk 0:02:45]} 8. Ne5 {[%clk 0:01:41]}  O-O {[%clk 0:02:44]} 9. Bd3 {[%clk 0:01:40]}  Re8 {[%clk 0:02:41]} 10. O-O {[%clk 0:01:39]}  Qe7 {[%clk 0:02:19]} 11. Rb1 {[%clk 0:01:33]}  Nbd7 {[%clk 0:02:17]} 12. Nxd7 {[%clk 0:01:33]}  Bxd7 {[%clk 0:02:15]} 13. Bxd6 {[%clk 0:01:32]}  Qxd6 {[%clk 0:02:16]} 14. b4 {[%clk 0:01:33]}  a6 {[%clk 0:02:15]} 15. a4 {[%clk 0:01:32]}  Re7 {[%clk 0:01:52]} 16. b5 {[%clk 0:01:31]}  axb5 {[%clk 0:01:51]} 17. axb5 {[%clk 0:01:31]}  c5 {[%clk 0:01:49]} 18. dxc5 {[%clk 0:01:28]}  Qxc5 {[%clk 0:01:49]} 19. Ne2 {[%clk 0:01:22]}  Bg4 {[%clk 0:01:45]} 20. Qc1 {[%clk 0:01:15]}  Qxc1 {[%clk 0:01:34]} 21. Rfxc1 {[%clk 0:01:16]}  Bxe2 {[%clk 0:01:33]} 22. Bxe2 {[%clk 0:01:16]}  d4 {[%clk 0:01:32]} 23. Rb3 {[%clk 0:01:07]}  Rae8 {[%clk 0:01:13]} 24. Bf3 {[%clk 0:01:04]}  dxe3 {[%clk 0:01:09]} 25. fxe3 {[%clk 0:01:03]}  b6 {[%clk 0:01:04]} 26. Rc6 {[%clk 0:00:54]}  Nd7 {[%clk 0:00:58]} 27. Rc7 {[%clk 0:00:53]}  Nc5 {[%clk 0:00:56]} 28. Rxe7 {[%clk 0:00:50]}  Rxe7 {[%clk 0:00:57]} 29. Ra3 {[%clk 0:00:47]}  f5 {[%clk 0:00:53]} 30. Ra8+ {[%clk 0:00:34]}  Kf7 {[%clk 0:00:53]} 31. Rb8 {[%clk 0:00:34]}  Rxe3 {[%clk 0:00:40]} 32. Rxb6 {[%clk 0:00:32]}  Nd3 {[%clk 0:00:38]} 33. h3 {[%clk 0:00:30]}  Re1+ {[%clk 0:00:33]} 34. Kh2 {[%clk 0:00:30]}  f4 {[%clk 0:00:33]} 35. Rb7+ {[%clk 0:00:22]}  Kf6 {[%clk 0:00:32]} 36. Rb6+ {[%clk 0:00:21]}  Ke5 {[%clk 0:00:27]} 37. Rb8 {[%clk 0:00:17]}  Kd4 {[%clk 0:00:25]} 38. Rd8+ {[%clk 0:00:16]}  Kc3 {[%clk 0:00:23]} 39. Rxd3+ {[%clk 0:00:16]}  Kxd3 {[%clk 0:00:22]} 40. b6 {[%clk 0:00:16]}  Rb1 {[%clk 0:00:21]} 41. b7 {[%clk 0:00:16]}  Rb2 {[%clk 0:00:20]} 42. h4 {[%clk 0:00:16]}  Ke3 {[%clk 0:00:20]} 43. Kh3 {[%clk 0:00:16]}  g6 {[%clk 0:00:18]} 44. Kg4 {[%clk 0:00:16]}  Rb5 {[%clk 0:00:16]} 45. Kh3 {[%clk 0:00:14]}  h5 {[%clk 0:00:16]} 46. Bc6 {[%clk 0:00:12]}  Rb6 {[%clk 0:00:15]} 47. g3 {[%clk 0:00:09]}  f3 {[%clk 0:00:13]} 48. g4 {[%clk 0:00:09]}  f2 {[%clk 0:00:11]} 49. Bg2 {[%clk 0:00:05]}  Rxb7 {[%clk 0:00:10]} 50. g5 {[%clk 0:00:04]}  Ke2 {[%clk 0:00:08]} 51. Bxb7 {[%clk 0:00:03]}  f1=Q+ {[%clk 0:00:07]} 52. Kh2 {[%clk 0:00:02]}  Qf2+ {[%clk 0:00:07]} 53. Kh3 {[%clk 0:00:02]}  Kf1 {[%clk 0:00:06]} 54. Ba6+ {[%clk 0:00:02]}  Kg1 {[%clk 0:00:06]} 55. Bb7 {[%clk 0:00:02]}  Qh2# {[%clk 0:00:05]} 0-1

[Event "November 21 Late 2023"]
[Site "https://www.chess.com"]
[Date "2023.11.21"]
[Round "3"]
[White "Melikhov, Evgeny V."]
[Black "Curtis, John"]
[Result "0-1"]
[Board "156"]
[TimeControl "180+1"]
[WhiteFideId "4122046"]
[BlackFideId "3200256"]
[WhiteElo "2165"]
[BlackElo "2203"]
[WhiteTeam "GRE"]
[BlackTeam "AUS"]
[WhiteClock "0:00:02"]
[BlackClock "0:00:18"]

1. d4 {[%clk 0:03:00]}  Nf6 {[%clk 0:02:55]} 2. c4 {[%clk 0:03:00]}  e6 {[%clk 0:02:55]} 3. Nc3 {[%clk 0:03:00]}  d5 {[%clk 0:02:51]} 4. cxd5 {[%clk 0:02:59]}  Nxd5 {[%clk 0:02:50]} 5. e4 {[%clk 0:02:59]}  Nxc3 {[%clk 0:02:50]} 6. bxc3 {[%clk 0:02:59]}  c5 {[%clk 0:02:51]} 7. Nf3 {[%clk 0:02:59]}  cxd4 {[%clk 0:02:51]} 8. cxd4 {[%clk 0:02:59]}  Bb4+ {[%clk 0:02:51]} 9. Bd2 {[%clk 0:03:00]}  Bxd2+ {[%clk 0:02:52]} 10. Qxd2 {[%clk 0:03:00]}  O-O {[%clk 0:02:53]} 11. Bd3 {[%clk 0:03:00]}  Nc6 {[%clk 0:02:53]} 12. Bc2 {[%clk 0:02:59]}  Qa5 {[%clk 0:02:51]} 13. Qxa5 {[%clk 0:02:51]}  Nxa5 {[%clk 0:02:51]} 14. Ke2 {[%clk 0:02:42]}  Bd7 {[%clk 0:02:50]} 15. Bb3 {[%clk 0:02:37]}  Bb5+ {[%clk 0:02:47]} 16. Ke3 {[%clk 0:02:37]}  Rac8 {[%clk 0:02:47]} 17. Rhc1 {[%clk 0:02:33]}  Nxb3 {[%clk 0:02:41]} 18. axb3 {[%clk 0:02:32]}  a6 {[%clk 0:02:41]} 19. Ne5 {[%clk 0:02:25]}  f6 {[%clk 0:02:41]} 20. Nc4 {[%clk 0:02:22]}  Rc6 {[%clk 0:02:25]} 21. Na5 {[%clk 0:02:14]}  Rb6 {[%clk 0:02:06]} 22. Rc7 {[%clk 0:02:11]}  Rf7 {[%clk 0:02:06]} 23. Rac1 {[%clk 0:02:08]}  Bc6 {[%clk 0:02:00]} 24. Rc8+ {[%clk 0:01:45]}  Rf8 {[%clk 0:01:59]} 25. Rc7 {[%clk 0:01:09]}  Rf7 {[%clk 0:01:59]} 26. Rc8+ {[%clk 0:01:08]}  Rf8 {[%clk 0:01:59]} 27. Rxf8+ {[%clk 0:01:03]}  Kxf8 {[%clk 0:01:59]} 28. Rc3 {[%clk 0:01:02]}  Ke7 {[%clk 0:01:57]} 29. f4 {[%clk 0:01:01]}  f5 {[%clk 0:01:51]} 30. d5 {[%clk 0:00:52]}  exd5 {[%clk 0:01:49]} 31. exf5 {[%clk 0:00:50]}  d4+ {[%clk 0:01:49]} 32. Kxd4 {[%clk 0:00:50]}  Bxg2 {[%clk 0:01:49]} 33. Rg3 {[%clk 0:00:49]}  Bc6 {[%clk 0:01:27]} 34. Nxc6+ {[%clk 0:00:42]}  bxc6 {[%clk 0:01:24]} 35. Rxg7+ {[%clk 0:00:41]}  Kf6 {[%clk 0:01:24]} 36. Rxh7 {[%clk 0:00:39]}  Rxb3 {[%clk 0:01:21]} 37. Ke4 {[%clk 0:00:26]}  Rb4+ {[%clk 0:01:20]} 38. Kf3 {[%clk 0:00:26]}  Kxf5 {[%clk 0:01:19]} 39. Rh5+ {[%clk 0:00:23]}  Ke6 {[%clk 0:01:10]} 40. Ra5 {[%clk 0:00:22]}  Rb6 {[%clk 0:00:59]} 41. h4 {[%clk 0:00:22]}  Kf6 {[%clk 0:00:59]} 42. Kg4 {[%clk 0:00:21]}  Kg6 {[%clk 0:00:56]} 43. Re5 {[%clk 0:00:19]}  Kf6 {[%clk 0:00:53]} 44. h5 {[%clk 0:00:18]}  Rb1 {[%clk 0:00:41]} 45. Rf5+ {[%clk 0:00:15]}  Ke6 {[%clk 0:00:35]} 46. Rc5 {[%clk 0:00:13]}  Rg1+ {[%clk 0:00:33]} 47. Kf3 {[%clk 0:00:11]}  Kd6 {[%clk 0:00:32]} 48. Rg5 {[%clk 0:00:10]}  Rh1 {[%clk 0:00:23]} 49. Kg4 {[%clk 0:00:08]}  Ke6 {[%clk 0:00:18]} 50. Rg6+ {[%clk 0:00:08]}  Kd5 {[%clk 0:00:17]} 51. Kg5 {[%clk 0:00:08]}  c5 {[%clk 0:00:17]} 52. Rg8 {[%clk 0:00:07]}  Rg1+ {[%clk 0:00:16]} 53. Kf6 {[%clk 0:00:08]}  Rxg8 {[%clk 0:00:17]} 54. h6 {[%clk 0:00:08]}  Rh8 {[%clk 0:00:16]} 55. Kg7 {[%clk 0:00:08]}  Rc8 {[%clk 0:00:16]} 56. f5 {[%clk 0:00:07]}  Ke5 {[%clk 0:00:16]} 57. f6 {[%clk 0:00:08]}  Rc7+ {[%clk 0:00:17]} 58. f7 {[%clk 0:00:07]}  Ke6 {[%clk 0:00:16]} 59. h7 {[%clk 0:00:06]}  Rxf7+ {[%clk 0:00:16]} 60. Kg8 {[%clk 0:00:06]}  Rxh7 {[%clk 0:00:17]} 61. Kxh7 {[%clk 0:00:02]}  c4 {[%clk 0:00:18]} 0-1

[Event "November 21 Late 2023"]
[Site "https://www.chess.com"]
[Date "2023.11.21"]
[Round "3"]
[White "UK_23"]
[Black "Manfroi, Alexander Giannini"]
[Result "1-0"]
[Board "157"]
[TimeControl "180+1"]
[BlackFideId "22739335"]
[WhiteElo "2410"]
[BlackElo "1618"]
[BlackTeam "BRA"]
[WhiteClock "0:00:16"]
[BlackClock "0:00:05"]

1. e4 {[%clk 0:03:00]}  e5 {[%clk 0:03:00]} 2. Nf3 {[%clk 0:02:50]}  Nc6 {[%clk 0:03:00]} 3. Bc4 {[%clk 0:02:50]}  Nf6 {[%clk 0:03:00]} 4. d3 {[%clk 0:02:51]}  Bc5 {[%clk 0:03:00]} 5. O-O {[%clk 0:02:51]}  d6 {[%clk 0:03:01]} 6. c3 {[%clk 0:02:51]}  Bg4 {[%clk 0:03:00]} 7. Nbd2 {[%clk 0:02:50]}  O-O {[%clk 0:02:56]} 8. h3 {[%clk 0:02:49]}  Be6 {[%clk 0:02:54]} 9. Bb5 {[%clk 0:02:47]}  a6 {[%clk 0:02:52]} 10. Ba4 {[%clk 0:02:47]}  b5 {[%clk 0:02:52]} 11. Bc2 {[%clk 0:02:47]}  Nb8 {[%clk 0:02:51]} 12. a4 {[%clk 0:02:46]}  Nbd7 {[%clk 0:02:45]} 13. Qe2 {[%clk 0:02:38]}  Bb6 {[%clk 0:02:29]} 14. Rd1 {[%clk 0:02:35]}  c5 {[%clk 0:02:29]} 15. Nf1 {[%clk 0:02:34]}  Qc7 {[%clk 0:02:28]} 16. Ng3 {[%clk 0:02:33]}  h6 {[%clk 0:02:24]} 17. Nh4 {[%clk 0:02:32]}  d5 {[%clk 0:02:02]} 18. Ngf5 {[%clk 0:02:24]}  Kh7 {[%clk 0:01:34]} 19. Qf3 {[%clk 0:02:19]}  Bxf5 {[%clk 0:01:14]} 20. Nxf5 {[%clk 0:02:08]}  Rae8 {[%clk 0:00:39]} 21. exd5 {[%clk 0:01:45]}  c4 {[%clk 0:00:34]} 22. dxc4 {[%clk 0:01:34]}  e4 {[%clk 0:00:32]} 23. Qf4 {[%clk 0:01:24]}  Qxc4 {[%clk 0:00:27]} 24. Nxg7 {[%clk 0:00:59]}  Kxg7 {[%clk 0:00:18]} 25. Qxh6+ {[%clk 0:00:59]}  Kg8 {[%clk 0:00:19]} 26. Bg5 {[%clk 0:00:58]}  Bd8 {[%clk 0:00:09]} 27. Rd4 {[%clk 0:00:51]}  Qe2 {[%clk 0:00:08]} 28. Bb3 {[%clk 0:00:40]}  Qh5 {[%clk 0:00:08]} 29. axb5 {[%clk 0:00:37]}  Qxh6 {[%clk 0:00:08]} 30. Bxh6 {[%clk 0:00:37]}  axb5 {[%clk 0:00:08]} 31. Ra6 {[%clk 0:00:25]}  Nc5 {[%clk 0:00:08]} 32. Ra3 {[%clk 0:00:23]}  Nxb3 {[%clk 0:00:05]} 33. Rxb3 {[%clk 0:00:24]}  Nd7 {[%clk 0:00:02]} 34. Rxb5 {[%clk 0:00:21]}  Ne5 {[%clk 0:00:02]} 35. c4 {[%clk 0:00:17]}  f6 {[%clk 0:00:02]} 36. Bxf8 {[%clk 0:00:17]}  Kxf8 {[%clk 0:00:03]} 37. d6 {[%clk 0:00:17]}  Kf7 {[%clk 0:00:02]} 38. c5 {[%clk 0:00:18]}  Ke6 {[%clk 0:00:03]} 39. Rd1 {[%clk 0:00:16]}  Kd7 {[%clk 0:00:02]} 40. Rb7+ {[%clk 0:00:16]}  Kc6 {[%clk 0:00:03]} 41. Rb8 {[%clk 0:00:13]}  Nd3 {[%clk 0:00:03]} 42. b4 {[%clk 0:00:11]}  Nxb4 {[%clk 0:00:03]} 43. d7 {[%clk 0:00:12]}  Re7 {[%clk 0:00:03]} 44. Rc8+ {[%clk 0:00:12]}  Kb7 {[%clk 0:00:02]} 45. Rb1 {[%clk 0:00:10]}  Rxd7 {[%clk 0:00:02]} 46. Rxd8 {[%clk 0:00:08]}  Rxd8 {[%clk 0:00:02]} 47. Rxb4+ {[%clk 0:00:07]}  Kc6 {[%clk 0:00:03]} 48. Rxe4 {[%clk 0:00:08]}  Kxc5 {[%clk 0:00:04]} 49. Rf4 {[%clk 0:00:09]}  Rf8 {[%clk 0:00:05]} 50. g4 {[%clk 0:00:09]}  Kd5 {[%clk 0:00:04]} 51. Kg2 {[%clk 0:00:10]}  Ke5 {[%clk 0:00:05]} 52. Kg3 {[%clk 0:00:11]}  Rg8 {[%clk 0:00:06]} 53. f3 {[%clk 0:00:11]}  Ra8 {[%clk 0:00:04]} 54. h4 {[%clk 0:00:12]}  Ke6 {[%clk 0:00:04]} 55. Rf5 {[%clk 0:00:13]}  Kf7 {[%clk 0:00:05]} 56. h5 {[%clk 0:00:14]}  Kg7 {[%clk 0:00:05]} 57. h6+ {[%clk 0:00:13]}  Kg6 {[%clk 0:00:05]} 58. h7 {[%clk 0:00:14]}  Ra3 {[%clk 0:00:06]} 59. Rh5 {[%clk 0:00:13]}  Ra8 {[%clk 0:00:03]} 60. h8=Q {[%clk 0:00:13]}  f5 {[%clk 0:00:02]} 61. Qh7+ {[%clk 0:00:12]}  Kf6 {[%clk 0:00:02]} 62. Rxf5+ {[%clk 0:00:13]}  Ke6 {[%clk 0:00:02]} 63. Qf7+ {[%clk 0:00:14]}  Kd6 {[%clk 0:00:03]} 64. Rd5+ {[%clk 0:00:15]}  Kc6 {[%clk 0:00:03]} 65. Qd7+ {[%clk 0:00:15]}  Kb6 {[%clk 0:00:04]} 66. Rb5+ {[%clk 0:00:16]}  Ka6 {[%clk 0:00:05]} 67. Qb7# {[%clk 0:00:16]} 1-0

[Event "November 21 Late 2023"]
[Site "https://www.chess.com"]
[Date "2023.11.21"]
[Round "3"]
[White "Rios Escobar, Adan"]
[Black "Smirnov, Timofey"]
[Result "1-0"]
[Board "162"]
[TimeControl "180+1"]
[WhiteFideId "3403645"]
[BlackFideId "24176427"]
[WhiteElo "2397"]
[BlackElo "2245"]
[WhiteTeam "CHI"]
[BlackTeam "RUS"]
[WhiteClock "0:00:24"]
[BlackClock "0:00:00"]

1. Nf3 {[%clk 0:02:57]}  d5 {[%clk 0:02:59]} 2. e3 {[%clk 0:02:56]}  Nf6 {[%clk 0:02:58]} 3. c4 {[%clk 0:02:54]}  c6 {[%clk 0:02:57]} 4. Nc3 {[%clk 0:02:54]}  e6 {[%clk 0:02:51]} 5. b3 {[%clk 0:02:52]}  Bd6 {[%clk 0:02:45]} 6. Bb2 {[%clk 0:02:52]}  O-O {[%clk 0:02:44]} 7. Qc2 {[%clk 0:02:50]}  Nbd7 {[%clk 0:02:42]} 8. Rg1 {[%clk 0:02:50]}  e5 {[%clk 0:02:26]} 9. cxd5 {[%clk 0:02:48]}  cxd5 {[%clk 0:02:20]} 10. Nb5 {[%clk 0:02:48]}  Bb8 {[%clk 0:01:46]} 11. Rc1 {[%clk 0:02:45]}  a6 {[%clk 0:01:46]} 12. Nc7 {[%clk 0:02:43]}  Bxc7 {[%clk 0:01:40]} 13. Qxc7 {[%clk 0:02:43]}  d4 {[%clk 0:01:23]} 14. exd4 {[%clk 0:02:30]}  exd4 {[%clk 0:01:22]} 15. Qxd8 {[%clk 0:02:29]}  Rxd8 {[%clk 0:01:21]} 16. Bxd4 {[%clk 0:02:15]}  Re8+ {[%clk 0:01:15]} 17. Kd1 {[%clk 0:02:03]}  Ne4 {[%clk 0:01:15]} 18. Bd3 {[%clk 0:01:51]}  Ndf6 {[%clk 0:01:08]} 19. h3 {[%clk 0:01:40]}  h6 {[%clk 0:00:48]} 20. Re1 {[%clk 0:01:37]}  Bf5 {[%clk 0:00:42]} 21. Bb1 {[%clk 0:01:04]}  Rad8 {[%clk 0:00:36]} 22. Be3 {[%clk 0:01:02]}  Nd5 {[%clk 0:00:17]} 23. Nd4 {[%clk 0:00:57]}  Nxe3+ {[%clk 0:00:16]} 24. fxe3 {[%clk 0:00:55]}  Nf2+ {[%clk 0:00:11]} 25. Ke2 {[%clk 0:00:53]}  Bxb1 {[%clk 0:00:06]} 26. Kxf2 {[%clk 0:00:49]}  Bd3 {[%clk 0:00:04]} 27. Rc7 {[%clk 0:00:47]}  b5 {[%clk 0:00:04]} 28. b4 {[%clk 0:00:44]}  Ra8 {[%clk 0:00:03]} 29. Nb3 {[%clk 0:00:33]}  a5 {[%clk 0:00:03]} 30. Nxa5 {[%clk 0:00:29]}  Red8 {[%clk 0:00:01]} 31. Nc6 {[%clk 0:00:26]}  Re8 {[%clk 0:00:00]} 32. Na5 {[%clk 0:00:24]} 1-0

[Event "November 21 Late 2023"]
[Site "https://www.chess.com"]
[Date "2023.11.21"]
[Round "3"]
[White "Kujawski, Adam"]
[Black "Blackwhite017"]
[Result "1-0"]
[Board "164"]
[TimeControl "180+1"]
[WhiteFideId "1100920"]
[WhiteElo "2054"]
[BlackElo "2033"]
[WhiteTeam "POL"]
[WhiteClock "0:00:36"]
[BlackClock "0:00:00"]

1. e4 {[%clk 0:03:00]}  c5 {[%clk 0:02:59]} 2. Nf3 {[%clk 0:03:00]}  d6 {[%clk 0:02:59]} 3. d4 {[%clk 0:03:00]}  cxd4 {[%clk 0:02:59]} 4. Nxd4 {[%clk 0:03:01]}  Nf6 {[%clk 0:02:59]} 5. Nc3 {[%clk 0:03:01]}  g6 {[%clk 0:03:00]} 6. Be3 {[%clk 0:03:00]}  Bg7 {[%clk 0:03:00]} 7. f3 {[%clk 0:03:01]}  O-O {[%clk 0:03:00]} 8. Qd2 {[%clk 0:03:01]}  Nc6 {[%clk 0:03:01]} 9. O-O-O {[%clk 0:03:01]}  Nxd4 {[%clk 0:02:07]} 10. Bxd4 {[%clk 0:02:58]}  Be6 {[%clk 0:02:04]} 11. Kb1 {[%clk 0:02:57]}  a6 {[%clk 0:01:31]} 12. g4 {[%clk 0:02:40]}  b5 {[%clk 0:01:25]} 13. h4 {[%clk 0:02:40]}  b4 {[%clk 0:01:22]} 14. Nd5 {[%clk 0:02:37]}  Bxd5 {[%clk 0:01:06]} 15. exd5 {[%clk 0:02:37]}  Nd7 {[%clk 0:00:46]} 16. Bxg7 {[%clk 0:02:19]}  Kxg7 {[%clk 0:00:46]} 17. h5 {[%clk 0:02:19]}  Rh8 {[%clk 0:00:31]} 18. h6+ {[%clk 0:02:17]}  Kf8 {[%clk 0:00:20]} 19. f4 {[%clk 0:02:16]}  f6 {[%clk 0:00:20]} 20. Bh3 {[%clk 0:02:00]}  Qb6 {[%clk 0:00:14]} 21. g5 {[%clk 0:01:52]}  f5 {[%clk 0:00:13]} 22. Rhe1 {[%clk 0:01:46]}  Nc5 {[%clk 0:00:13]} 23. Bg2 {[%clk 0:01:36]}  Ra7 {[%clk 0:00:06]} 24. Re3 {[%clk 0:01:31]}  a5 {[%clk 0:00:05]} 25. Rde1 {[%clk 0:01:30]}  a4 {[%clk 0:00:05]} 26. Qd4 {[%clk 0:01:27]}  Rg8 {[%clk 0:00:03]} 27. a3 {[%clk 0:00:56]}  bxa3 {[%clk 0:00:03]} 28. Rxa3 {[%clk 0:00:54]}  Kf7 {[%clk 0:00:03]} 29. Rae3 {[%clk 0:00:48]}  Rb7 {[%clk 0:00:03]} 30. Rxe7+ {[%clk 0:00:36]}  Rxe7 {[%clk 0:00:00]} 31. Qf6+ {[%clk 0:00:36]} 1-0

[Event "November 21 Late 2023"]
[Site "https://www.chess.com"]
[Date "2023.11.21"]
[Round "3"]
[White "Nita, Lucian"]
[Black "Gallegos Diaz, Carlos Alberto"]
[Result "1-0"]
[Board "165"]
[TimeControl "180+1"]
[WhiteFideId "1206923"]
[BlackFideId "3900886"]
[WhiteElo "2066"]
[BlackElo "2362"]
[WhiteTeam "ROU"]
[BlackTeam "VEN"]
[WhiteClock "0:00:13"]
[BlackClock "0:00:02"]

1. e4 {[%clk 0:03:00]}  d6 {[%clk 0:02:59]} 2. d3 {[%clk 0:03:01]}  Nf6 {[%clk 0:02:58]} 3. Nd2 {[%clk 0:03:01]}  e5 {[%clk 0:02:57]} 4. Ngf3 {[%clk 0:03:02]}  Be7 {[%clk 0:02:57]} 5. Be2 {[%clk 0:03:03]}  O-O {[%clk 0:02:56]} 6. O-O {[%clk 0:03:04]}  c6 {[%clk 0:02:56]} 7. b3 {[%clk 0:03:05]}  Nbd7 {[%clk 0:02:56]} 8. Bb2 {[%clk 0:03:06]}  Re8 {[%clk 0:02:57]} 9. Re1 {[%clk 0:03:06]}  h6 {[%clk 0:02:57]} 10. Nf1 {[%clk 0:03:06]}  b5 {[%clk 0:02:57]} 11. Ne3 {[%clk 0:03:06]}  a6 {[%clk 0:02:57]} 12. a4 {[%clk 0:03:07]}  Bf8 {[%clk 0:02:56]} 13. axb5 {[%clk 0:03:06]}  cxb5 {[%clk 0:02:57]} 14. c4 {[%clk 0:03:03]}  Bb7 {[%clk 0:02:56]} 15. Nd5 {[%clk 0:03:01]}  Nxd5 {[%clk 0:02:49]} 16. cxd5 {[%clk 0:02:59]}  Rc8 {[%clk 0:02:37]} 17. d4 {[%clk 0:02:52]}  exd4 {[%clk 0:02:33]} 18. Qxd4 {[%clk 0:02:50]}  Nc5 {[%clk 0:02:30]} 19. Nd2 {[%clk 0:02:48]}  Qg5 {[%clk 0:02:20]} 20. g3 {[%clk 0:02:41]}  Qg6 {[%clk 0:02:02]} 21. Bf3 {[%clk 0:02:36]}  Be7 {[%clk 0:01:41]} 22. Bh5 {[%clk 0:02:26]}  Qf6 {[%clk 0:01:25]} 23. Qxf6 {[%clk 0:02:23]}  Bxf6 {[%clk 0:01:26]} 24. Bxf6 {[%clk 0:02:21]}  gxf6 {[%clk 0:01:27]} 25. Bg4 {[%clk 0:02:16]}  Ra8 {[%clk 0:01:20]} 26. Bf5 {[%clk 0:02:15]}  a5 {[%clk 0:01:18]} 27. Re3 {[%clk 0:02:12]}  Kf8 {[%clk 0:01:08]} 28. Nf3 {[%clk 0:02:06]}  a4 {[%clk 0:00:53]} 29. b4 {[%clk 0:02:00]}  Nb3 {[%clk 0:00:43]} 30. Ra3 {[%clk 0:01:58]}  Bc8 {[%clk 0:00:35]} 31. Nh4 {[%clk 0:01:48]}  Nd2 {[%clk 0:00:30]} 32. Rec3 {[%clk 0:01:23]}  Bxf5 {[%clk 0:00:25]} 33. Nxf5 {[%clk 0:01:22]}  Nxe4 {[%clk 0:00:25]} 34. Re3 {[%clk 0:01:08]}  Re5 {[%clk 0:00:23]} 35. Nxh6 {[%clk 0:01:05]}  Rc8 {[%clk 0:00:22]} 36. Ng4 {[%clk 0:01:03]}  Rc1+ {[%clk 0:00:20]} 37. Kg2 {[%clk 0:01:02]}  Re7 {[%clk 0:00:18]} 38. h4 {[%clk 0:00:58]}  f5 {[%clk 0:00:17]} 39. Nh6 {[%clk 0:00:56]}  f4 {[%clk 0:00:16]} 40. Rf3 {[%clk 0:00:55]}  fxg3 {[%clk 0:00:16]} 41. fxg3 {[%clk 0:00:50]}  Rc2+ {[%clk 0:00:16]} 42. Kh3 {[%clk 0:00:50]}  Nf2+ {[%clk 0:00:15]} 43. Rxf2 {[%clk 0:00:49]}  Rxf2 {[%clk 0:00:14]} 44. Ng4 {[%clk 0:00:49]}  Rb2 {[%clk 0:00:13]} 45. h5 {[%clk 0:00:48]}  Rxb4 {[%clk 0:00:13]} 46. h6 {[%clk 0:00:47]}  f5 {[%clk 0:00:13]} 47. Rf3 {[%clk 0:00:46]}  Rf7 {[%clk 0:00:12]} 48. Ne3 {[%clk 0:00:45]}  Rb3 {[%clk 0:00:10]} 49. Kh4 {[%clk 0:00:43]}  a3 {[%clk 0:00:10]} 50. Kg5 {[%clk 0:00:39]}  a2 {[%clk 0:00:09]} 51. Rf1 {[%clk 0:00:34]}  Rxe3 {[%clk 0:00:08]} 52. g4 {[%clk 0:00:34]}  Rg3 {[%clk 0:00:07]} 53. Kh5 {[%clk 0:00:19]}  Rxg4 {[%clk 0:00:07]} 54. Ra1 {[%clk 0:00:17]}  Rf6 {[%clk 0:00:05]} 55. Rxa2 {[%clk 0:00:15]}  Rgg6 {[%clk 0:00:05]} 56. Ra8+ {[%clk 0:00:15]}  Ke7 {[%clk 0:00:06]} 57. Ra7+ {[%clk 0:00:15]}  Kd8 {[%clk 0:00:06]} 58. h7 {[%clk 0:00:14]}  Rh6+ {[%clk 0:00:06]} 59. Kg5 {[%clk 0:00:14]}  Kc8 {[%clk 0:00:06]} 60. h8=Q+ {[%clk 0:00:13]}  Rxh8 {[%clk 0:00:05]} 61. Kxf6 {[%clk 0:00:13]}  Rf8+ {[%clk 0:00:05]} 62. Ke6 {[%clk 0:00:14]}  f4 {[%clk 0:00:05]} 63. Ra8+ {[%clk 0:00:13]}  Kb7 {[%clk 0:00:03]} 64. Rxf8 {[%clk 0:00:14]}  b4 {[%clk 0:00:04]} 65. Rxf4 {[%clk 0:00:13]}  Kb6 {[%clk 0:00:05]} 66. Rxb4+ {[%clk 0:00:14]}  Kc5 {[%clk 0:00:02]} 67. Rb8 {[%clk 0:00:13]} 1-0